Workbook

Sheet CCU
A1: COMPOSIÇÃO DE CUSTO UNITÁRIOS DE SERVIÇOS DE ENGENHARIA | E1: FONTE: | F1: SICRO/AGESUL/SINAPI
E2: DATA BASE: | F2: NOVEMBRO./2022
A4: FONTE AGESUL DEIURB | B4: DISCRIMINAÇÃO | C4: UN | D4: QUANTIDADE | E4: CUSTO UNITÁRIO (R$) | F4: CUSTO (R$)
A5: EG0007 | B5: Sondagem à percussão (SPT) com lavagem | C5: m | F5: =TRUNC(SUM(F6:F13),2) -> 168.23
A6: SINAPI 101403 | B6: ENGENHEIRO CIVIL SENIOR COM ENCARGOS COMPLEMENTARES | C6: mês | D6: 8e-05 | E6: 28594.95 | F6: =TRUNC(D6*E6,4) -> 2.2875
A7: SINAPI 100319 | B7: ENGENHEIRO CIVIL JUNIOR COM ENCARGOS COMPLEMENTARES | C7: mês | D7: 0.00167 | E7: 18597.31 | F7: =TRUNC(D7*E7,4) -> 31.0575
A8: SINAPI 101388 | B8: AUXILIAR TÉCNICO COM ENCARGOS COMPLEMENTARES | C8: mês | D8: 0.00333 | E8: 3462.31 | F8: 11.5294
A9: SINAPI 101456 | B9: TÉCNICO DE LABORATÓRIO COM ENCARGOS COMPLEMENTARES | C9: mês | D9: 0.00333 | E9: 5318.22 | F9: =TRUNC(D9*E9,4) -> 17.7096
A10: SINAPI 101385 | B10: AUXILIAR DE LABORATÓRIO COM ENCARGOS COMPLEMENTARES | C10: mês | D10: 0.00333 | E10: 4465.13 | F10: 14.8688
A11: SINAPI 101457 | B11: TÉCNICO EM SONDAGEM COM ENCARGOS COMPLEMENTARES | C11: mês | D11: 0.00667 | E11: 6998.3 | F11: 46.6786
A12: B8957 | B12: LABORATÓRIO DE SOLOS | C12: mês | D12: 0.00333 | E12: 3517.99 | F12: 11.7149
A13: V0003 | B13: Van furgão - 93 kW (com motorista) | C13: mês | D13: 0.00433 | E13: 7481.19 | F13: 32.3935
A14: ET0002 | B14: Levantamento topográfico planialtimétrico | C14: ha | F14: =TRUNC(SUM(F15:F22),2) -> 6029.44
A15: SINAPI 101403 | B15: ENGENHEIRO CIVIL SENIOR COM ENCARGOS COMPLEMENTARES | C15: mês | D15: 0.00417 | E15: 28594.95 | F15: =TRUNC(D15*E15,4) -> 119.2409
A16: SINAPI 100319 | B16: ENGENHEIRO CIVIL JUNIOR COM ENCARGOS COMPLEMENTARES | C16: mês | D16: 0.0833 | E16: 18597.31 | F16: =TRUNC(D16*E16,4) -> 1549.1559
A17: SINAPI 94296 | B17: TOPOGRAFO COM ENCARGOS COMPLEMENTARES | C17: mês | D17: 0.1833 | E17: 4056.63 | F17: 743.5802
A18: SINAPI 101389 | B18: AUXILIAR DE TOPÓGRAFO COM ENCARGOS COMPLEMENTARES | C18: mês | D18: 0.3666 | E18: 1987.55 | F18: 728.6358
A19: SINAPI 93559 | B19: DESENHISTA DETALHISTA COM ENCARGOS COMPLEMENTARES | C19: mês | D19: 0.2 | E19: 3855.16 | F19: 771.032
A20: SINAPI 101423 | B20: MOTORISTA DE VEÍCULO LEVE COM ENCARGOS COMPLEMENTARES | C20: mês | D20: 0.1833 | E20: 4320.66 | F20: =TRUNC(D20*E20,4) -> 791.9769
A21: B8958 | B21: LABORATÓRIO DE TOPOGRAFIA | C21: mês | D21: 0.1833 | E21: 2344.21 | F21: =TRUNC(D21*E21,4) -> 429.6936
A22: V0002 | B22: Veículo leve Pick Up 4x4 - 147 kW (sem motorista) | C22: mês | D22: 0.1833 | E22: 4888.89 | F22: 896.1335
A23: ETG0001 | B23: Elaboração de estudos topográficos e geotécnicos | C23: km | F23: =SUM(F24:F37) -> 9331.9117
A24: SINAPI 101403 | B24: ENGENHEIRO CIVIL SENIOR COM ENCARGOS COMPLEMENTARES | C24: mês | D24: 0.00415 | E24: 28594.95 | F24: =TRUNC(D24*E24,4) -> 118.669
A25: SINAPI 100319 | B25: ENGENHEIRO CIVIL JUNIOR COM ENCARGOS COMPLEMENTARES | C25: mês | D25: 0.083 | E25: 18597.31 | F25: 1543.5767
A26: SINAPI 101456 | B26: TÉCNICO DE LABORATÓRIO COM ENCARGOS COMPLEMENTARES | C26: mês | D26: 0.139 | E26: 5318.22 | F26: 739.2325
A27: SINAPI 101385 | B27: AUXILIAR DE LABORATÓRIO COM ENCARGOS COMPLEMENTARES | C27: mês | D27: 0.278 | E27: 4465.13 | F27: 1241.3061
A28: SINAPI 94296 | B28: TOPOGRAFO COM ENCARGOS COMPLEMENTARES | C28: mês | D28: 0.166 | E28: 4056.63 | F28: 673.4005
A29: SINAPI 101389 | B29: AUXILIAR DE TOPÓGRAFO COM ENCARGOS COMPLEMENTARES | C29: mês | D29: 0.333 | E29: 1987.55 | F29: 661.8541
A30: SINAPI 93559 | B30: DESENHISTA DETALHISTA COM ENCARGOS COMPLEMENTARES | C30: mês | D30: 0.022 | E30: 3855.16 | F30: 84.8135
A31: SINAPI 101390 | B31: TÉCNICO DE GEOPROCESSAM. COM ENCARGOS COMPLEMENTARES | C31: mês | D31: 0.166 | E31: 6109.96 | F31: 1014.2533
A32: SINAPI 101423 | B32: MOTORISTA DE VEÍCULO LEVE COM ENCARGOS COMPLEMENTARES | C32: mês | D32: 0.083 | E32: 4320.66 | F32: 358.6147
A33: B8958 | B33: LABORATÓRIO DE TOPOGRAFIA | C33: mês | D33: 0.166 | E33: 2344.21 | F33: 389.1388
A34: B8957 | B34: LABORATÓRIO DE SOLOS | C34: mês | D34: 0.139 | E34: 3517.99 | F34: 489.0006
A35: V0001 | B35: Veículo leve - 53 kW (sem motorista) | C35: mês | D35: 0.083 | E35: 2007.36 | F35: 166.6108
A36: V0002 | B36: Veículo leve Pick Up 4x4 - 147 kW (sem motorista) | C36: mês | D36: 0.166 | E36: 4888.89 | F36: 811.5557
A37: V0003 | B37: Van furgão - 93 kW (com motorista) | C37: mês | D37: 0.139 | E37: 7481.19 | F37: 1039.8854
A38: PIU0001 | B38: Elaboração de projetos executivos geométrico, terraplenagem, pavimentação, drenagem superficial (guias e sarjetas) sinalização viária e acessibilidade (inclusive planilha orçamentária detalhada, composição de BDI, cronograma físico-financeiro, planilha de composição de custo unitário, memória de cálculo e memorial descritivo) | C38: m² | F38: =TRUNC(SUM(F39:F44),2) -> 2.86
A39: SINAPI 101403 | B39: ENGENHEIRO CIVIL SENIOR COM ENCARGOS COMPLEMENTARES | C39: mês | D39: 2e-05 | E39: 28594.95 | F39: =TRUNC(D39*E39,4) -> 0.5718
A40: SINAPI 100319 | B40: ENGENHEIRO CIVIL JUNIOR COM ENCARGOS COMPLEMENTARES | C40: mês | D40: 9e-05 | E40: 18597.31 | F40: 1.6737
A41: SINAPI 93559 | B41: DESENHISTA DETALHISTA COM ENCARGOS COMPLEMENTARES | C41: mês | D41: 6e-05 | E41: 3855.16 | F41: 0.2313
A42: SINAPI 101388 | B42: AUXILIAR TÉCNICO COM ENCARGOS COMPLEMENTARES | C42: mês | D42: 4e-05 | E42: 3462.31 | F42: 0.1384
A43: SINAPI 101423 | B43: MOTORISTA DE VEÍCULO LEVE COM ENCARGOS COMPLEMENTARES | C43: mês | D43: 4e-05 | E43: 4320.66 | F43: 0.1728
A44: V0001 | B44: Veículo leve - 53 kW (sem motorista) | C44: mês | D44: 4e-05 | E44: 2007.36 | F44: 0.0802
A45: PIU0004 | B45: Elaboração de projeto executivo de galerias de drenagem de águas pluviais. Exclusive serviços topográficos e geotécnicos | C45: m | F45: =TRUNC(SUM(F46:F51),2) -> 6.66
A46: SINAPI 101403 | B46: ENGENHEIRO CIVIL SENIOR COM ENCARGOS COMPLEMENTARES | C46: mês | D46: 5e-05 | E46: 28594.95 | F46: =TRUNC(D46*E46,4) -> 1.4297
A47: SINAPI 100319 | B47: ENGENHEIRO CIVIL JUNIOR COM ENCARGOS COMPLEMENTARES | C47: mês | D47: 0.00024 | E47: 18597.31 | F47: 4.4633
A48: SINAPI 93559 | B48: DESENHISTA DETALHISTA COM ENCARGOS COMPLEMENTARES | C48: mês | D48: 0.00014 | E48: 3855.16 | F48: 0.5397
A49: SINAPI 101388 | B49: AUXILIAR TÉCNICO COM ENCARGOS COMPLEMENTARES | C49: mês | D49: 5e-05 | E49: 3462.31 | F49: 0.1731
A50: SINAPI 101423 | B50: MOTORISTA DE VEÍCULO LEVE COM ENCARGOS COMPLEMENTARES | C50: mês | D50: 1e-05 | E50: 4320.66 | F50: 0.0432
A51: V0001 | B51: Veículo leve - 53 kW (sem motorista) | C51: mês | D51: 1e-05 | E51: 2007.36 | F51: 0.02
A52: PIU0009 | B52: Elaboração de projeto estrutural de estabilização de taludes através de muro de arrimo de peso e/ou gabião. Exclusive serviços topográficos e geotécnicos | C52: m² | F52: =TRUNC(SUM(F53:F57),2) -> 11.14
A53: SINAPI 101403 | B53: ENGENHEIRO CIVIL SENIOR COM ENCARGOS COMPLEMENTARES | C53: mês | D53: 0.00023 | E53: 28594.95 | F53: =TRUNC(D53*E53,4) -> 6.5768
A54: SINAPI 100319 | B54: ENGENHEIRO CIVIL JUNIOR COM ENCARGOS COMPLEMENTARES | C54: mês | D54: 0.00016 | E54: 18597.31 | F54: 2.9755
A55: SINAPI 93559 | B55: DESENHISTA DETALHISTA COM ENCARGOS COMPLEMENTARES | C55: mês | D55: 0.00016 | E55: 3855.16 | F55: 0.6168
A56: SINAPI 101388 | B56: AUXILIAR TÉCNICO COM ENCARGOS COMPLEMENTARES | C56: mês | D56: 0.00016 | E56: 3462.31 | F56: 0.5539
A57: V0001 | B57: Veículo leve - 53 kW (sem motorista) | C57: mês | D57: 0.00021 | E57: 2007.36 | F57: =TRUNC(D57*E57,4) -> 0.4215
A58: PIU0011 | B58: Elaboração de projeto executivo de bacia de amortecimento de drenagem de águas pluviais. Exclusive serviços topográficos e geotécnicos e projeto estrutural de contenção de talude | C58: m³ | F58: =TRUNC(SUM(F59:F63),2) -> 1.89
A59: SINAPI 101403 | B59: ENGENHEIRO CIVIL SENIOR COM ENCARGOS COMPLEMENTARES | C59: mês | D59: 2e-05 | E59: 28594.95 | F59: =TRUNC(D59*E59,4) -> 0.5718
A60: SINAPI 100319 | B60: ENGENHEIRO CIVIL JUNIOR COM ENCARGOS COMPLEMENTARES | C60: mês | D60: 6e-05 | E60: 18597.31 | F60: 1.1158
A61: SINAPI 93559 | B61: DESENHISTA DETALHISTA COM ENCARGOS COMPLEMENTARES | C61: mês | D61: 4e-05 | E61: 3855.16 | F61: 0.1542
A62: SINAPI 101388 | B62: AUXILIAR TÉCNICO COM ENCARGOS COMPLEMENTARES | C62: mês | D62: 1e-05 | E62: 3462.31 | F62: 0.0346
A63: V0001 | B63: Veículo leve - 53 kW (sem motorista) | C63: mês | D63: 1e-05 | E63: 2007.36 | F63: 0.02
A64: V0001 | B64: Veículo leve - 53 kW (sem motorista) | C64: mês | F64: =TRUNC(SUM(F65:F66),2) -> 2007.36
A65: SICRO E8889 | B65: Veículo leve - tipo hatch - (sem motorista) | C65: CHP | D65: 66 | E65: 24.29 | F65: =TRUNC(D65*E65,4) -> 1603.14
A66: SICRO E8889 | B66: Veículo leve - tipo hatch - (sem motorista) | C66: CHI | D66: 116.49 | E66: 3.47 | F66: =TRUNC(D66*E66,4) -> 404.2203
A67: V0002 | B67: Veículo leve Pick Up 4x4 - 147 kW (sem motorista) | C67: mês | F67: =TRUNC(SUM(F68:F69),2) -> 4888.89
A68: SICRO E8891 | B68: Veículo leve - tipo pick up 4 x 4 - (sem motorista) | C68: CHP | D68: 66 | E68: 48.87 | F68: =TRUNC(D68*E68,4) -> 3225.42
A69: SICRO E8891 | B69: Veículo leve - tipo pick up 4 x 4 - (sem motorista) | C69: CHI | D69: 116.49 | E69: 14.28 | F69: =TRUNC(D69*E69,4) -> 1663.4772
A70: V0003 | B70: Van furgão - 93 kW (com motorista) | C70: mês | F70: =TRUNC(SUM(F71:F72),2) -> 7481.19
A71: SICRO E8887 | B71: Veículo van - tipo furgão - (com motorista) | C71: CHP | D71: 66 | E71: 54.93 | F71: =TRUNC(D71*E71,4) -> 3625.38
A72: SICRO E8887 | B72: Veículo van - tipo furgão - (com motorista) | C72: CHI | D72: 116.49 | E72: 33.1 | F72: =TRUNC(D72*E72,4) -> 3855.819
A73: PRO_ENC | B73: Reprografia e montagem de relatório (texto e desenho) | C73: un | F73: =TRUNC(SUM(F74:F78),2) -> 559
A74: C0001 | B74: Cópia/Impressão escala de cinza A4, papel sufite 75g | C74: un | D74: 100 | E74: 0.15 | F74: =TRUNC(D74*E74,4) -> 15
A75: C0002 | B75: Cópia/Impressão colorida A4, papel sufite 75g | C75: un | D75: 50 | E75: 1 | F75: =TRUNC(D75*E75,4) -> 50
A76: C0003 | B76: Plotagem escala de cinza A1, papel sufite 75g | C76: un | D76: 20 | E76: 5 | F76: 100
A77: C0004 | B77: Plotagem colorida A1, papel sufite 75g | C77: un | D77: 30 | E77: 13 | F77: 390
A78: C0005 | B78: Encadernação espiral, capa plásticas transparentes e contracapa preta A4, até 150 folhas | C78: un | D78: 1 | E78: 4 | F78: 4
A79: LIC_AMB | B79: Licenciamento Ambiental para projeto de lançamento de drenagem de águas pluviais | C79: un | F79: =TRUNC(SUM(F80:F84),2) -> 21016.35
A80: SINAPI 101403 | B80: ENGENHEIRO AMBIENTAL SENIOR COM ENCARGOS COMPLEMENTARES | C80: mês | D80: 0.35 | E80: 28594.95 | F80: =TRUNC(D80*E80,4) -> 10008.2325
A81: SINAPI 100319 | B81: ENGENHEIRO AGRÔNOMO JUNIOR COM ENCARGOS COMPLEMENTARES | C81: mês | D81: 0.35 | E81: 18597.31 | F81: 6509.0585
A82: SINAPI 93559 | B82: DESENHISTA DETALHISTA COM ENCARGOS COMPLEMENTARES | C82: mês | D82: 0.2 | E82: 3855.16 | F82: =TRUNC(D82*E82,4) -> 771.032
A83: P8032 | B83: Biólogo júnior | C83: mês | D83: 0.21 | E83: 6112.31 | F83: =TRUNC(D83*E83,4) -> 1283.5851
A84: V0002 | B84: Veículo leve Pick Up 4x4 - 147 kW (sem motorista) | C84: mês | D84: 0.5 | E84: 4888.89 | F84: 2444.445

Sheet Orcamento
B1: PREFEITURA MUNICIPAL DE SIDROLÂNDIA - MS | G1: DATA BASE:
B2: SECRETARIA MUNICIPAL DE PLANEJAMENTO E PROJETOS ESTRATÉGICOS | G2: =+CCU!F2 -> NOVEMBRO./2022
G3: BDI SERVIÇOS:
B4: LOCAL : | C4: BAIRRO ALTO DA FIGUEIRA | G4: =BDI!E17 -> 0.2223
B5: SERVIÇO: | C5: ELABORAÇÃO DE PROJETOS EXECUTIVO DE INFRAESTURURA URBANA - PAVIMENTAÇÃO E DRENAGEM DE ÁGUAS PLUVIAIS
C7: PLANILHA ORÇAMENTÁRIA
A9: ITEM | B9: CÓDIGO | C9: DISCRIMINAÇÃO | D9: UNID. | E9: QUANT. | F9: PREÇO UNITÁRIO C/ BDI - (R$) | G9: PREÇO TOTAL (R$) | H9: (%)
A10: 1 | B10: PRO_ENC | C10: =VLOOKUP(B10,CCU!A:F,2,0) -> Reprografia e montagem de relatório (texto e desenho) | D10: =VLOOKUP(B10,CCU!A:F,3,0) -> un | E10: 5 | F10: =TRUNC((VLOOKUP(B10,CCU!A:F,6,0))*(1+$G$4),2) -> 683.26 | G10: =TRUNC(E10*F10,2) -> 3416.3 | H10: =G10/$F$17 -> 0.02185957035
A11: 2 | B11: ETG0001 | C11: =VLOOKUP(B11,CCU!A:F,2,0) -> Elaboração de estudos topográficos e geotécnicos | D11: =VLOOKUP(B11,CCU!A:F,3,0) -> km | E11: 2.5 | F11: =TRUNC((VLOOKUP(B11,CCU!A:F,6,0))*(1+$G$4),2) -> 11406.39 | G11: =TRUNC(E11*F11,2) -> 28515.97 | H11: 0.1824625625
A12: 3 | B12: PIU0001 | C12: =VLOOKUP(B12,CCU!A:F,2,0) -> Elaboração de projetos executivos geométrico, terraplenagem, pavimentação, drenagem superficial (guias e sarjetas) sinalização viária e acessibilidade (inclusive planilha orçamentária detalhada, composição de BDI, cronograma físico-financeiro, planilha de composição de custo unitário, memória de cálculo e memorial descritivo) | D12: =VLOOKUP(B12,CCU!A:F,3,0) -> m² | E12: 17615.08 | F12: =TRUNC((VLOOKUP(B12,CCU!A:F,6,0))*(1+$G$4),2) -> 3.49 | G12: 61476.62 | H12: 0.3933648977 | I12: =F17/E12 -> 8.872168051
A13: 4 | B13: PIU0004 | C13: =VLOOKUP(B13,CCU!A:F,2,0) -> Elaboração de projeto executivo de galerias de drenagem de águas pluviais. Exclusive serviços topográficos e geotécnicos | D13: =VLOOKUP(B13,CCU!A:F,3,0) -> m | E13: 2400 | F13: =TRUNC((VLOOKUP(B13,CCU!A:F,6,0))*(1+$G$4),2) -> 8.14 | G13: 19536 | H13: 0.1250032393
A14: 5 | B14: ET0002 | C14: =VLOOKUP(B14,CCU!A:F,2,0) -> Levantamento topográfico planialtimétrico | D14: =VLOOKUP(B14,CCU!A:F,3,0) -> ha | E14: 1 | F14: =TRUNC((VLOOKUP(B14,CCU!A:F,6,0))*(1+$G$4),2) -> 7369.78 | G14: 7369.78 | H14: 0.04715634587
A15: 6 | B15: EG0007 | C15: =VLOOKUP(B15,CCU!A:F,2,0) -> Sondagem à percussão (SPT) com lavagem | D15: =VLOOKUP(B15,CCU!A:F,3,0) -> m | E15: 50 | F15: =TRUNC((VLOOKUP(B15,CCU!A:F,6,0))*(1+$G$4),2) -> 205.62 | G15: 10281 | H15: 0.06578410643
A16: 7 | B16: LIC_AMB | C16: =VLOOKUP(B16,CCU!A:F,2,0) -> Licenciamento Ambiental para projeto de lançamento de drenagem de águas pluviais | D16: =VLOOKUP(B16,CCU!A:F,3,0) -> un | E16: 1 | F16: =TRUNC((VLOOKUP(B16,CCU!A:F,6,0))*(1+$G$4),2) -> 25688.28 | G16: 25688.28 | H16: 0.1643692778
A17: TOTAL GERAL | F17: =SUM(G10:G16) -> 156283.95 | H17: =F17/$F$17 -> 1

Sheet BDI
A1: =Orcamento!B1 -> PREFEITURA MUNICIPAL DE SIDROLÂNDIA - MS
A2: =Orcamento!B2 -> SECRETARIA MUNICIPAL DE PLANEJAMENTO E PROJETOS ESTRATÉGICOS
A4: COMPOSIÇÃO DE BDI DE SERVIÇOS SEM DESONERAÇÃO - conforme Acórdão TCU 2622/2013
A5: =Orcamento!C5 -> ELABORAÇÃO DE PROJETOS EXECUTIVO DE INFRAESTURURA URBANA - PAVIMENTAÇÃO E DRENAGEM DE ÁGUAS PLUVIAIS | C5: Tipo de Serviço: | D5: ELABORAÇÃO DE PROJETOS EDIFICIOS, CONSULTORIA E SUPERVISÃO
A6: Item componente do BDI | B6: 1° Quartil | C6: Médio | D6: 3° quartil | E6: BDI Adotado
A7: AC - Administração Central | B7: 0.03 | C7: 0.04 | D7: 0.055 | E7: 0.04
A8: S + G - Seguro e Garantia | B8: 0.008 | C8: 0.008 | D8: 0.01 | E8: 0.008
A9: R - Risco | B9: 0.0097 | C9: 0.0127 | D9: 0.0127 | E9: 0.0127
A10: DF - Despesas Financeiras | B10: 0.0059 | C10: 0.0123 | D10: 0.0139 | E10: 0.0123
A11: L - Lucro | B11: 0.0616 | C11: 0.074 | D11: 0.0896 | E11: 0.074
A12: I - IMPOSTOS | E12: =SUM(E13:E16) -> 0.0565
D13: PIS: | E13: 0.0065
D14: COFINS: | E14: 0.03
D15: ISSQN(3): | E15: 0.02
D16: CPRB(2)
A17: BDI CALCULADO: | E17: =ROUND(((1+E7+E8+E9)*(1+E10)*(1+E11)/(1-E12)-1),4) -> 0.2223
A19: BDI calculado pela seguinte equação:
A20: Onde:
A21: AC: taxa de administração central;
A22: S: taxa de seguros;
A23: R: taxa de riscos;
A24: G: taxa de garantias;
A25: DF: taxa de despesas financeiras;
A26: L: taxa de lucro/remuneração;
A27: I: taxa de incidência de impostos [ PIS, COFINS, (3) ISSQN, (2) Encargos Sociais ]
A28: (2) CPRB=4,50%(Contribuição Previdenciária sobre a Receita Bruta - Lei no. 13.161 de 31/08/2015
A29: (3) ISSQN é um imposto que incide sobre o preço de serviço, em Corumbá o valor é de 5%. O custo previsto com mão-de-obra é de 60% do custo total da obra, para o computo do ISSQN o valor será de 3%
